[Event "Early-Titled-Tuesday-Blitz-October-10-2023"]
[Site "Chess.com"]
[Date "2023.10.10"]
[Round "3"]
[White "Larina_Maria"]
[Black "secretsuperstar7"]
[Result "0-1"]
[WhiteElo "2218"]
[BlackElo "2414"]
[TimeControl "180+1"]
[EndTime "8:29:03 PDT"]
[Termination "secretsuperstar7 won by checkmate"]

1. e4 {[%clk 0:03:00.9]} 1... c5 {[%clk 0:02:58.2]} 2. Nc3 {[%clk 0:03:00.5]}
2... a6 {[%clk 0:02:55.6]} 3. g3 {[%clk 0:03:00.3]} 3... b5 {[%clk 0:02:55.5]}
4. Bg2 {[%clk 0:03:00.8]} 4... Bb7 {[%clk 0:02:55.7]} 5. d3 {[%clk 0:02:56.5]}
5... d6 {[%clk 0:02:55.8]} 6. Nh3 {[%clk 0:02:53.8]} 6... Nd7 {[%clk 0:02:55.8]}
7. O-O {[%clk 0:02:53.3]} 7... g6 {[%clk 0:02:56]} 8. f4 {[%clk 0:02:52.9]} 8...
Bg7 {[%clk 0:02:56.1]} 9. f5 {[%clk 0:02:42.2]} 9... Rb8 {[%clk 0:02:53.8]} 10.
Ng5 {[%clk 0:02:38.1]} 10... Ngf6 {[%clk 0:02:50.4]} 11. Ne2 {[%clk 0:02:15.9]}
11... O-O {[%clk 0:02:46.3]} 12. Nf4 {[%clk 0:02:13.3]} 12... Qb6 {[%clk
0:02:35.2]} 13. fxg6 {[%clk 0:02:08.1]} 13... hxg6 {[%clk 0:02:33.6]} 14. Be3
{[%clk 0:01:56.8]} 14... Ne5 {[%clk 0:02:32.1]} 15. h3 {[%clk 0:01:52]} 15...
Nc6 {[%clk 0:02:23.9]} 16. c3 {[%clk 0:01:50.5]} 16... b4 {[%clk 0:02:23.1]} 17.
Rb1 {[%clk 0:01:46.1]} 17... a5 {[%clk 0:02:20.5]} 18. Qd2 {[%clk 0:01:40.3]}
18... Ba6 {[%clk 0:02:20.2]} 19. c4 {[%clk 0:01:38]} 19... Nd4 {[%clk
0:02:15.5]} 20. Nf3 {[%clk 0:01:35.8]} 20... e5 {[%clk 0:02:12.5]} 21. Nd5
{[%clk 0:01:34.4]} 21... Nxd5 {[%clk 0:02:11.9]} 22. exd5 {[%clk 0:01:33.9]}
22... e4 {[%clk 0:02:09]} 23. Ng5 {[%clk 0:01:25.5]} 23... exd3 {[%clk 0:02:06]}
24. Qxd3 {[%clk 0:01:23.8]} 24... Rbe8 {[%clk 0:02:02.2]} 25. Rbe1 {[%clk
0:01:20.4]} 25... b3 {[%clk 0:01:53.3]} 26. a3 {[%clk 0:01:18]} 26... Qd8 {[%clk
0:01:50.3]} 27. Ne4 {[%clk 0:00:51.8]} 27... f5 {[%clk 0:01:44.7]} 28. Ng5
{[%clk 0:00:40.5]} 28... Bf6 {[%clk 0:01:34.9]} 29. h4 {[%clk 0:00:39.7]} 29...
Nc2 {[%clk 0:01:32.6]} 30. Ne6 {[%clk 0:00:37.1]} 30... Rxe6 {[%clk 0:01:25.7]}
31. dxe6 {[%clk 0:00:35.9]} 31... Nxe3 {[%clk 0:01:18.7]} 32. Rxe3 {[%clk
0:00:34.7]} 32... Bd4 {[%clk 0:01:18.6]} 33. e7 {[%clk 0:00:32.8]} 33... Qxe7
{[%clk 0:01:18.4]} 34. Re1 {[%clk 0:00:30.4]} 34... Qf6 {[%clk 0:01:01.4]} 35.
Kh2 {[%clk 0:00:27.6]} 35... Bxe3 {[%clk 0:00:56.6]} 36. Rxe3 {[%clk 0:00:25.9]}
36... Qd4 {[%clk 0:00:55]} 37. Bd5+ {[%clk 0:00:22.8]} 37... Kg7 {[%clk
0:00:53]} 38. Qxd4+ {[%clk 0:00:21.7]} 38... cxd4 {[%clk 0:00:52.8]} 39. Re7+
{[%clk 0:00:22.4]} 39... Kf6 {[%clk 0:00:51.9]} 40. Ra7 {[%clk 0:00:21.1]} 40...
Bc8 {[%clk 0:00:51.2]} 41. Rc7 {[%clk 0:00:18.4]} 41... d3 {[%clk 0:00:46.9]}
42. Bf3 {[%clk 0:00:15.7]} 42... Re8 {[%clk 0:00:42.5]} 43. c5 {[%clk
0:00:15.2]} 43... dxc5 {[%clk 0:00:35.8]} 44. Rxc5 {[%clk 0:00:16.1]} 44... Be6
{[%clk 0:00:29.2]} 45. Rc6 {[%clk 0:00:15.5]} 45... Rd8 {[%clk 0:00:27.7]} 46.
Bd1 {[%clk 0:00:14.5]} 46... Ke5 {[%clk 0:00:26.3]} 47. Rc3 {[%clk 0:00:13.9]}
47... Kd4 {[%clk 0:00:23]} 48. Rc6 {[%clk 0:00:10.9]} 48... Bc4 {[%clk
0:00:19.9]} 49. Rxg6 {[%clk 0:00:09.9]} 49... Ke3 {[%clk 0:00:20.1]} 50. h5
{[%clk 0:00:09.5]} 50... Kd2 {[%clk 0:00:19.5]} 51. Bf3 {[%clk 0:00:09.7]} 51...
Kc2 {[%clk 0:00:18.6]} 52. h6 {[%clk 0:00:10]} 52... d2 {[%clk 0:00:18.8]} 53.
h7 {[%clk 0:00:09.5]} 53... d1=Q {[%clk 0:00:17.4]} 54. Bxd1+ {[%clk 0:00:09.8]}
54... Kxd1 {[%clk 0:00:17.5]} 55. Rh6 {[%clk 0:00:09.6]} 55... Rh8 {[%clk
0:00:17]} 56. Kh3 {[%clk 0:00:08.8]} 56... Bd3 {[%clk 0:00:15.3]} 57. g4 {[%clk
0:00:08.8]} 57... fxg4+ {[%clk 0:00:15.1]} 58. Kxg4 {[%clk 0:00:09.7]} 58...
Rxh7 {[%clk 0:00:15.2]} 59. Rf6 {[%clk 0:00:08.8]} 59... Kc2 {[%clk 0:00:14.7]}
60. Kg5 {[%clk 0:00:08.8]} 60... Rc7 {[%clk 0:00:14.1]} 61. Rf2+ {[%clk
0:00:09.7]} 61... Kb1 {[%clk 0:00:13.7]} 62. Kf4 {[%clk 0:00:09.8]} 62... Rc2
{[%clk 0:00:13.5]} 63. Ke3 {[%clk 0:00:10.7]} 63... Rxf2 {[%clk 0:00:12.9]} 64.
Kxf2 {[%clk 0:00:11.6]} 64... Kxb2 {[%clk 0:00:12.9]} 65. Ke3 {[%clk 0:00:12.5]}
65... Bc4 {[%clk 0:00:13]} 66. Kd2 {[%clk 0:00:13.4]} 66... Kxa3 {[%clk
0:00:12.3]} 67. Kc1 {[%clk 0:00:14.3]} 67... b2+ {[%clk 0:00:12.3]} 68. Kb1
{[%clk 0:00:15.2]} 68... Bd3# {[%clk 0:00:12.5]} 0-1

[Event "Early-Titled-Tuesday-Blitz-October-10-2023"]
[Site "Chess.com"]
[Date "2023.10.10"]
[Round "3"]
[White "Arash_Tahbaz"]
[Black "Alex_Sahakyan2006"]
[Result "1/2-1/2"]
[WhiteElo "2930"]
[BlackElo "2696"]
[TimeControl "180+1"]
[EndTime "8:29:06 PDT"]
[Termination "Game drawn - insufficient material"]

1. Nf3 {[%clk 0:03:00.9]} 1... d5 {[%clk 0:02:55]} 2. g3 {[%clk 0:03:00.9]} 2...
Bg4 {[%clk 0:02:55.4]} 3. Bg2 {[%clk 0:03:01.2]} 3... Nd7 {[%clk 0:02:55.6]} 4.
O-O {[%clk 0:02:58.1]} 4... Ngf6 {[%clk 0:02:56]} 5. d3 {[%clk 0:02:54.2]} 5...
e6 {[%clk 0:02:54.1]} 6. h3 {[%clk 0:02:54.5]} 6... Bxf3 {[%clk 0:02:51]} 7.
Bxf3 {[%clk 0:02:55.4]} 7... Bc5 {[%clk 0:02:50.3]} 8. Nd2 {[%clk 0:02:52.5]}
8... h5 {[%clk 0:02:48.4]} 9. e3 {[%clk 0:02:48.5]} 9... h4 {[%clk 0:02:46.7]}
10. g4 {[%clk 0:02:48.5]} 10... Bd6 {[%clk 0:02:41.1]} 11. Qe2 {[%clk 0:02:48]}
11... c6 {[%clk 0:02:40]} 12. Bg2 {[%clk 0:02:48]} 12... Qc7 {[%clk 0:02:27.6]}
13. f4 {[%clk 0:02:46.1]} 13... O-O-O {[%clk 0:02:27.5]} 14. d4 {[%clk
0:02:39.3]} 14... c5 {[%clk 0:02:19.7]} 15. c3 {[%clk 0:02:26.7]} 15... cxd4
{[%clk 0:02:19.4]} 16. cxd4 {[%clk 0:02:26.5]} 16... Kb8 {[%clk 0:02:19.4]} 17.
Nb3 {[%clk 0:02:04.1]} 17... Rc8 {[%clk 0:02:14.7]} 18. Bd2 {[%clk 0:02:04.2]}
18... Qc2 {[%clk 0:02:14.8]} 19. Rab1 {[%clk 0:01:55.3]} 19... Qc4 {[%clk
0:02:07.5]} 20. Qxc4 {[%clk 0:01:49.5]} 20... Rxc4 {[%clk 0:02:08.4]} 21. Rfc1
{[%clk 0:01:45.7]} 21... Nb6 {[%clk 0:01:57.1]} 22. Kf1 {[%clk 0:01:24.7]} 22...
Rxc1+ {[%clk 0:01:51.7]} 23. Rxc1 {[%clk 0:01:24.8]} 23... Nc4 {[%clk
0:01:51.4]} 24. Rc2 {[%clk 0:01:21.2]} 24... Nxd2+ {[%clk 0:01:49.3]} 25. Nxd2
{[%clk 0:01:19.7]} 25... Bb4 {[%clk 0:01:48.8]} 26. Nf3 {[%clk 0:01:11.8]} 26...
Nd7 {[%clk 0:01:47.1]} 27. Ke2 {[%clk 0:01:07.1]} 27... Be7 {[%clk 0:01:46.6]}
28. Kd3 {[%clk 0:01:04.6]} 28... f6 {[%clk 0:01:26]} 29. f5 {[%clk 0:01:04.1]}
29... e5 {[%clk 0:01:25.5]} 30. Nd2 {[%clk 0:00:43.5]} 30... e4+ {[%clk
0:01:24.1]} 31. Ke2 {[%clk 0:00:41.3]} 31... Rc8 {[%clk 0:01:10.1]} 32. Kd1
{[%clk 0:00:41.1]} 32... Rxc2 {[%clk 0:01:08.3]} 33. Kxc2 {[%clk 0:00:42]} 33...
Kc7 {[%clk 0:01:08.7]} 34. Bxe4 {[%clk 0:00:37.4]} 34... dxe4 {[%clk 0:01:07.8]}
35. Nxe4 {[%clk 0:00:38.3]} 35... Nb6 {[%clk 0:01:08.1]} 36. Kd3 {[%clk
0:00:32.5]} 36... Nd5 {[%clk 0:01:06]} 37. a3 {[%clk 0:00:32.4]} 37... Kc6
{[%clk 0:01:03.9]} 38. Nd2 {[%clk 0:00:32.1]} 38... b5 {[%clk 0:01:00.4]} 39.
Nf3 {[%clk 0:00:32.4]} 39... Nb6 {[%clk 0:00:57.6]} 40. e4 {[%clk 0:00:22.1]}
40... Nc4 {[%clk 0:00:55.7]} 41. b3 {[%clk 0:00:21.7]} 41... Nxa3 {[%clk
0:00:48.3]} 42. Nxh4 {[%clk 0:00:22.2]} 42... a5 {[%clk 0:00:44.3]} 43. Nf3
{[%clk 0:00:20.2]} 43... a4 {[%clk 0:00:39.8]} 44. h4 {[%clk 0:00:16.9]} 44...
axb3 {[%clk 0:00:30.9]} 45. Kc3 {[%clk 0:00:17.3]} 45... Nc4 {[%clk 0:00:20.5]}
46. Kxb3 {[%clk 0:00:17.1]} 46... Ne3 {[%clk 0:00:20.9]} 47. g5 {[%clk
0:00:17.7]} 47... b4 {[%clk 0:00:20.9]} 48. gxf6 {[%clk 0:00:06.5]} 48... gxf6
{[%clk 0:00:21.8]} 49. h5 {[%clk 0:00:07.1]} 49... Bf8 {[%clk 0:00:19.5]} 50.
Nh4 {[%clk 0:00:04]} 50... Kb5 {[%clk 0:00:17.1]} 51. Ng6 {[%clk 0:00:04.6]}
51... Bh6 {[%clk 0:00:16.9]} 52. e5 {[%clk 0:00:04.9]} 52... Nxf5 {[%clk
0:00:16.4]} 53. exf6 {[%clk 0:00:05]} 53... Nxd4+ {[%clk 0:00:16.7]} 54. Kb2
{[%clk 0:00:04.9]} 54... Kc4 {[%clk 0:00:15.6]} 55. Ne5+ {[%clk 0:00:03.6]}
55... Kd5 {[%clk 0:00:15.4]} 56. Ng4 {[%clk 0:00:04.1]} 56... Bf8 {[%clk
0:00:14.7]} 57. h6 {[%clk 0:00:04.4]} 57... Bxh6 {[%clk 0:00:12.1]} 58. Nxh6
{[%clk 0:00:05.3]} 58... Ke6 {[%clk 0:00:11.8]} 59. f7 {[%clk 0:00:05.5]} 59...
Ke7 {[%clk 0:00:11.4]} 60. Nf5+ {[%clk 0:00:05.2]} 60... Nxf5 {[%clk 0:00:11.3]}
61. Kb3 {[%clk 0:00:05.9]} 61... Kxf7 {[%clk 0:00:11.4]} 62. Kxb4 {[%clk
0:00:06.8]} 1/2-1/2

[Event "Early-Titled-Tuesday-Blitz-October-10-2023"]
[Site "Chess.com"]
[Date "2023.10.10"]
[Round "3"]
[White "DrVelja"]
[Black "mr_gustavo"]
[Result "1-0"]
[WhiteElo "2848"]
[BlackElo "2623"]
[TimeControl "180+1"]
[EndTime "8:29:16 PDT"]
[Termination "DrVelja won on time"]

1. e4 {[%clk 0:03:00.3]} 1... c6 {[%clk 0:02:54.4]} 2. d4 {[%clk 0:02:59.9]}
2... d5 {[%clk 0:02:53.9]} 3. Nd2 {[%clk 0:02:57.8]} 3... dxe4 {[%clk
0:02:54.1]} 4. Nxe4 {[%clk 0:02:58.7]} 4... Nf6 {[%clk 0:02:54.3]} 5. Ng3 {[%clk
0:02:57.5]} 5... h5 {[%clk 0:02:53.6]} 6. Bc4 {[%clk 0:02:57.1]} 6... h4 {[%clk
0:02:52.7]} 7. Nf1 {[%clk 0:02:56.6]} 7... h3 {[%clk 0:02:50.4]} 8. g3 {[%clk
0:02:57]} 8... Nbd7 {[%clk 0:02:48.6]} 9. Nf3 {[%clk 0:02:56.7]} 9... Nb6 {[%clk
0:02:41.3]} 10. Bb3 {[%clk 0:02:56.7]} 10... Nbd5 {[%clk 0:02:41.8]} 11. Ne5
{[%clk 0:02:53.3]} 11... Be6 {[%clk 0:02:38]} 12. Bg5 {[%clk 0:02:49.1]} 12...
Nc7 {[%clk 0:02:33.5]} 13. Ne3 {[%clk 0:02:47.4]} 13... Bxb3 {[%clk 0:02:33.2]}
14. axb3 {[%clk 0:02:47.3]} 14... Ne6 {[%clk 0:02:33.6]} 15. Bxf6 {[%clk
0:02:44.8]} 15... exf6 {[%clk 0:02:32.2]} 16. Nf3 {[%clk 0:02:45.7]} 16... Bd6
{[%clk 0:02:14.1]} 17. d5 {[%clk 0:02:43.8]} 17... cxd5 {[%clk 0:02:12.9]} 18.
Qxd5 {[%clk 0:02:44.7]} 18... Qc7 {[%clk 0:01:52.9]} 19. O-O {[%clk 0:02:16.2]}
19... O-O {[%clk 0:01:49.4]} 20. Qf5 {[%clk 0:02:14]} 20... Bc5 {[%clk
0:01:38.6]} 21. Nd5 {[%clk 0:02:11.9]} 21... Qc6 {[%clk 0:01:38.2]} 22. Rad1
{[%clk 0:01:54.5]} 22... Rad8 {[%clk 0:01:36.1]} 23. c4 {[%clk 0:01:52.3]} 23...
Nc7 {[%clk 0:01:30.4]} 24. b4 {[%clk 0:01:18.8]} 24... Bd6 {[%clk 0:01:06]} 25.
Nxf6+ {[%clk 0:01:05]} 25... gxf6 {[%clk 0:01:03.2]} 26. Rd4 {[%clk 0:01:05.8]}
26... Rfe8 {[%clk 0:00:49.6]} 27. Qxf6 {[%clk 0:00:59.2]} 27... Be5 {[%clk
0:00:45.4]} 28. Qxc6 {[%clk 0:00:58.9]} 28... bxc6 {[%clk 0:00:44.2]} 29. Rxd8
{[%clk 0:00:59.6]} 29... Rxd8 {[%clk 0:00:44.8]} 30. Nxe5 {[%clk 0:01:00.3]}
30... Rd2 {[%clk 0:00:40.3]} 31. Nf3 {[%clk 0:00:18.1]} 31... Rxb2 {[%clk
0:00:38.7]} 32. Ng5 {[%clk 0:00:18.7]} 32... Rxb4 {[%clk 0:00:36.5]} 33. Ra1
{[%clk 0:00:19.4]} 33... a5 {[%clk 0:00:33.9]} 34. Nxh3 {[%clk 0:00:20]} 34...
a4 {[%clk 0:00:34.5]} 35. Nf4 {[%clk 0:00:12.7]} 35... Rxc4 {[%clk 0:00:34.5]}
36. Nd3 {[%clk 0:00:13.5]} 36... Nb5 {[%clk 0:00:31.1]} 37. Nb2 {[%clk
0:00:12.9]} 37... Rc2 {[%clk 0:00:11.6]} 38. Nxa4 {[%clk 0:00:12.4]} 38... c5
{[%clk 0:00:12.2]} 39. Rb1 {[%clk 0:00:09.1]} 39... Nd4 {[%clk 0:00:12.2]} 40.
Rf1 {[%clk 0:00:08.6]} 40... Kg7 {[%clk 0:00:12]} 41. Kg2 {[%clk 0:00:09]} 41...
c4 {[%clk 0:00:12.5]} 42. Rd1 {[%clk 0:00:09.1]} 42... Nf5 {[%clk 0:00:10.1]}
43. Kf3 {[%clk 0:00:09.5]} 43... Ra2 {[%clk 0:00:08.6]} 44. Nc3 {[%clk
0:00:09.1]} 44... Ra3 {[%clk 0:00:07.8]} 45. Rc1 {[%clk 0:00:09.8]} 45... Nd4+
{[%clk 0:00:07.3]} 46. Ke4 {[%clk 0:00:10]} 46... Nb3 {[%clk 0:00:07.8]} 47. Rc2
{[%clk 0:00:10.6]} 47... Ra1 {[%clk 0:00:07.6]} 48. Kd5 {[%clk 0:00:10.3]} 48...
Na5 {[%clk 0:00:05.9]} 49. Ra2 {[%clk 0:00:08.3]} 49... Rxa2 {[%clk 0:00:04.9]}
50. Nxa2 {[%clk 0:00:09.2]} 50... Kg6 {[%clk 0:00:05.3]} 51. Nc3 {[%clk
0:00:08.7]} 51... Kf5 {[%clk 0:00:05.4]} 52. f3 {[%clk 0:00:08.4]} 52... f6
{[%clk 0:00:05.1]} 53. Ne4 {[%clk 0:00:08.3]} 53... Kg6 {[%clk 0:00:03.3]} 54.
Kd4 {[%clk 0:00:08.7]} 54... f5 {[%clk 0:00:02.4]} 55. Nd2 {[%clk 0:00:08.1]}
55... Nb3+ {[%clk 0:00:01.3]} 56. Nxb3 {[%clk 0:00:07.9]} 56... cxb3 {[%clk
0:00:02.2]} 57. Kc3 {[%clk 0:00:08.8]} 57... f4 {[%clk 0:00:03.1]} 58. Kxb3
{[%clk 0:00:08.2]} 58... Kg5 {[%clk 0:00:04]} 59. Kc4 {[%clk 0:00:08.5]} 59...
Kf5 {[%clk 0:00:04]} 60. Kd4 {[%clk 0:00:08.9]} 60... Kg5 {[%clk 0:00:04]} 61.
Ke4 {[%clk 0:00:09.5]} 61... fxg3 {[%clk 0:00:03.2]} 62. hxg3 {[%clk 0:00:10.4]}
1-0

[Event "Early-Titled-Tuesday-Blitz-October-10-2023"]
[Site "Chess.com"]
[Date "2023.10.10"]
[Round "3"]
[White "MikaelyanArman"]
[Black "ChessTankMan"]
[Result "1-0"]
[WhiteElo "2821"]
[BlackElo "2512"]
[TimeControl "180+1"]
[EndTime "8:29:24 PDT"]
[Termination "MikaelyanArman won by resignation"]

1. d4 {[%clk 0:02:59.8]} 1... Nf6 {[%clk 0:02:59.2]} 2. Nf3 {[%clk 0:02:58.5]}
2... e6 {[%clk 0:02:58.6]} 3. c4 {[%clk 0:02:57.2]} 3... d5 {[%clk 0:02:58.8]}
4. Nbd2 {[%clk 0:02:56.2]} 4... Be7 {[%clk 0:02:55.5]} 5. b3 {[%clk 0:02:55.6]}
5... O-O {[%clk 0:02:54.3]} 6. Bb2 {[%clk 0:02:56.2]} 6... b6 {[%clk 0:02:54.4]}
7. e3 {[%clk 0:02:56.6]} 7... Bb7 {[%clk 0:02:51.5]} 8. Rc1 {[%clk 0:02:56.9]}
8... Nbd7 {[%clk 0:02:52.1]} 9. Be2 {[%clk 0:02:55.5]} 9... a6 {[%clk 0:02:52]}
10. O-O {[%clk 0:02:55.7]} 10... Rc8 {[%clk 0:02:51.1]} 11. Ne5 {[%clk
0:02:53.2]} 11... c5 {[%clk 0:02:44.1]} 12. cxd5 {[%clk 0:02:47.6]} 12... exd5
{[%clk 0:02:43.9]} 13. Ndf3 {[%clk 0:02:42.4]} 13... Ne4 {[%clk 0:02:32.4]} 14.
Nxd7 {[%clk 0:02:39.2]} 14... Qxd7 {[%clk 0:02:32.4]} 15. Ne5 {[%clk 0:02:40]}
15... Qd6 {[%clk 0:02:30.6]} 16. dxc5 {[%clk 0:02:35.3]} 16... bxc5 {[%clk
0:02:28.4]} 17. Nd3 {[%clk 0:02:35.9]} 17... Bf6 {[%clk 0:02:19.6]} 18. Bxf6
{[%clk 0:02:11.6]} 18... Nxf6 {[%clk 0:02:19.3]} 19. Bf3 {[%clk 0:02:08.9]}
19... Rfd8 {[%clk 0:02:18.5]} 20. Nf4 {[%clk 0:02:02.8]} 20... h6 {[%clk
0:02:14.1]} 21. Rc2 {[%clk 0:02:01.4]} 21... Qb6 {[%clk 0:02:10.3]} 22. Rd2
{[%clk 0:01:58.5]} 22... d4 {[%clk 0:01:42.4]} 23. Bxb7 {[%clk 0:01:52.6]} 23...
Qxb7 {[%clk 0:01:21.8]} 24. exd4 {[%clk 0:01:51.2]} 24... Ne4 {[%clk 0:01:21.2]}
25. Rd3 {[%clk 0:01:51.3]} 25... Qc7 {[%clk 0:01:08.8]} 26. dxc5 {[%clk
0:01:27.6]} 26... Nxc5 {[%clk 0:01:01.8]} 27. Rxd8+ {[%clk 0:01:20.5]} 27...
Rxd8 {[%clk 0:01:01.4]} 28. Qf3 {[%clk 0:01:19.9]} 28... Qe5 {[%clk 0:00:55.8]}
29. h3 {[%clk 0:01:15.9]} 29... Rd4 {[%clk 0:00:31.7]} 30. Ne2 {[%clk
0:01:04.9]} 30... Rd3 {[%clk 0:00:28.5]} 31. Qa8+ {[%clk 0:01:04.8]} 31... Kh7
{[%clk 0:00:28.1]} 32. Ng3 {[%clk 0:01:05.4]} 32... Qd4 {[%clk 0:00:19.7]} 33.
Kh2 {[%clk 0:00:59.7]} 33... Rd2 {[%clk 0:00:16.3]} 34. Qf3 {[%clk 0:00:59.6]}
34... Qe5 {[%clk 0:00:14.2]} 35. Rd1 {[%clk 0:00:47.2]} 35... Rxd1 {[%clk
0:00:12.7]} 36. Qxd1 {[%clk 0:00:48.1]} 36... g6 {[%clk 0:00:12.9]} 37. b4
{[%clk 0:00:43.1]} 37... Ne6 {[%clk 0:00:10.9]} 38. Qd3 {[%clk 0:00:39.4]} 38...
h5 {[%clk 0:00:09.3]} 39. Qe3 {[%clk 0:00:26.8]} 39... Qb8 {[%clk 0:00:06.1]}
40. Qe4 {[%clk 0:00:20.6]} 40... Kg7 {[%clk 0:00:03.9]} 41. Kg1 {[%clk
0:00:19.8]} 41... Qc7 {[%clk 0:00:03.7]} 42. Nf1 {[%clk 0:00:19.6]} 42... Qc1
{[%clk 0:00:01.9]} 43. Qe5+ {[%clk 0:00:19.9]} 43... Kh7 {[%clk 0:00:01.9]} 44.
h4 {[%clk 0:00:17.5]} 44... Kg8 {[%clk 0:00:02.2]} 45. g3 {[%clk 0:00:15.9]}
45... Qd1 {[%clk 0:00:02]} 46. Kg2 {[%clk 0:00:14]} 46... Qd8 {[%clk 0:00:02.5]}
47. Ne3 {[%clk 0:00:13.4]} 47... Qa8+ {[%clk 0:00:03.2]} 48. Qd5 {[%clk
0:00:12.8]} 48... Qb8 {[%clk 0:00:03.1]} 49. a3 {[%clk 0:00:12.4]} 49... Qc8
{[%clk 0:00:02.8]} 50. Nc4 {[%clk 0:00:12.7]} 50... Qc7 {[%clk 0:00:02.4]} 51.
Ne5 {[%clk 0:00:11.5]} 51... Qc8 {[%clk 0:00:02.4]} 52. Qd7 {[%clk 0:00:09.5]}
52... Qa8+ {[%clk 0:00:02.7]} 53. Kg1 {[%clk 0:00:08.9]} 53... Qf8 {[%clk
0:00:02]} 54. Nxg6 {[%clk 0:00:09.4]} 54... fxg6 {[%clk 0:00:01.7]} 55. Qxe6+
{[%clk 0:00:09.4]} 55... Kh7 {[%clk 0:00:02.6]} 56. Qxa6 {[%clk 0:00:09.3]}
56... Qe7 {[%clk 0:00:02.2]} 57. Qd3 {[%clk 0:00:08.5]} 57... Qe1+ {[%clk
0:00:02.1]} 58. Kg2 {[%clk 0:00:08.7]} 58... Qe5 {[%clk 0:00:02.7]} 59. b5
{[%clk 0:00:08.7]} 59... Qe6 {[%clk 0:00:02.8]} 60. a4 {[%clk 0:00:08]} 60...
Qb6 {[%clk 0:00:03]} 61. Qd7+ {[%clk 0:00:07.2]} 61... Kh6 {[%clk 0:00:02.4]}
62. Qc8 {[%clk 0:00:07.7]} 62... Qb7+ {[%clk 0:00:02]} 63. Qxb7 {[%clk 0:00:07]}
1-0

[Event "Early-Titled-Tuesday-Blitz-October-10-2023"]
[Site "Chess.com"]
[Date "2023.10.10"]
[Round "3"]
[White "kacprekt"]
[Black "RETURNOFTHELAGGER"]
[Result "1/2-1/2"]
[WhiteElo "2478"]
[BlackElo "2665"]
[TimeControl "180+1"]
[EndTime "8:29:24 PDT"]
[Termination "Game drawn - insufficient material"]

1. e4 {[%clk 0:03:00.9]} 1... c5 {[%clk 0:02:54.2]} 2. Nf3 {[%clk 0:03:00.7]}
2... d6 {[%clk 0:02:54.8]} 3. Bb5+ {[%clk 0:02:58.7]} 3... Nc6 {[%clk
0:02:53.5]} 4. O-O {[%clk 0:02:56.3]} 4... Bd7 {[%clk 0:02:52.6]} 5. Re1 {[%clk
0:02:55.5]} 5... Nf6 {[%clk 0:02:49.1]} 6. c3 {[%clk 0:02:54.1]} 6... a6 {[%clk
0:02:47.4]} 7. Bd3 {[%clk 0:02:53]} 7... e5 {[%clk 0:01:40.5]} 8. Bc2 {[%clk
0:02:50.8]} 8... h6 {[%clk 0:01:29.5]} 9. h3 {[%clk 0:02:50.8]} 9... g5 {[%clk
0:01:27.4]} 10. d4 {[%clk 0:02:50.9]} 10... cxd4 {[%clk 0:01:24]} 11. cxd4
{[%clk 0:02:50.8]} 11... g4 {[%clk 0:01:24.9]} 12. dxe5 {[%clk 0:02:35.4]} 12...
gxf3 {[%clk 0:01:20.7]} 13. exf6 {[%clk 0:02:34.7]} 13... Ne5 {[%clk 0:01:19]}
14. g3 {[%clk 0:02:25.5]} 14... Qxf6 {[%clk 0:01:14.8]} 15. Nc3 {[%clk
0:02:21.1]} 15... Rg8 {[%clk 0:00:47.7]} 16. Nd5 {[%clk 0:02:19.6]} 16... Qh4
{[%clk 0:00:48.2]} 17. Bf4 {[%clk 0:01:18]} 17... Qxh3 {[%clk 0:00:41]} 18. Ne3
{[%clk 0:00:58]} 18... Rg5 {[%clk 0:00:29.2]} 19. Bxe5 {[%clk 0:00:52.9]} 19...
Rh5 {[%clk 0:00:29]} 20. Qxf3 {[%clk 0:00:52.4]} 20... Qh2+ {[%clk 0:00:28.7]}
21. Kf1 {[%clk 0:00:52.7]} 21... Bb5+ {[%clk 0:00:28]} 22. Re2 {[%clk 0:00:47]}
22... Qh1+ {[%clk 0:00:23]} 23. Qxh1 {[%clk 0:00:46.7]} 23... Rxh1+ {[%clk
0:00:23.9]} 24. Kg2 {[%clk 0:00:45.5]} 24... Rxa1 {[%clk 0:00:24.8]} 25. Rd2
{[%clk 0:00:33.1]} 25... dxe5 {[%clk 0:00:23.4]} 26. Nd5 {[%clk 0:00:32]} 26...
O-O-O {[%clk 0:00:20.5]} 27. Nb6+ {[%clk 0:00:27.6]} 27... Kc7 {[%clk
0:00:20.9]} 28. Nd5+ {[%clk 0:00:24.9]} 28... Kb8 {[%clk 0:00:19.1]} 29. Bb3
{[%clk 0:00:19.1]} 29... Bb4 {[%clk 0:00:17.2]} 30. Rc2 {[%clk 0:00:16.9]} 30...
Bd3 {[%clk 0:00:14.7]} 31. Nxb4 {[%clk 0:00:11]} 31... Bxe4+ {[%clk 0:00:15.1]}
32. f3 {[%clk 0:00:10.6]} 32... Bxc2 {[%clk 0:00:16]} 33. Nxc2 {[%clk
0:00:11.5]} 33... Rd2+ {[%clk 0:00:15.9]} 34. Kh3 {[%clk 0:00:11.7]} 34... Rxc2
{[%clk 0:00:16.1]} 35. Bxc2 {[%clk 0:00:11.4]} 35... Rxa2 {[%clk 0:00:17]} 36.
Bb3 {[%clk 0:00:11.4]} 36... Rxb2 {[%clk 0:00:17.3]} 37. Bxf7 {[%clk 0:00:12.3]}
37... Kc7 {[%clk 0:00:16.8]} 38. Kg4 {[%clk 0:00:11.1]} 38... Kd6 {[%clk
0:00:17.4]} 39. Kf5 {[%clk 0:00:11.7]} 39... Rg2 {[%clk 0:00:16.6]} 40. g4
{[%clk 0:00:10.8]} 40... a5 {[%clk 0:00:16.9]} 41. Kg6 {[%clk 0:00:10.2]} 41...
e4 {[%clk 0:00:16.5]} 42. fxe4 {[%clk 0:00:07.8]} 42... Rxg4+ {[%clk 0:00:16.3]}
43. Kf5 {[%clk 0:00:08.7]} 43... Rxe4 {[%clk 0:00:17.1]} 44. Kxe4 {[%clk
0:00:08.8]} 44... b5 {[%clk 0:00:17.8]} 45. Kd4 {[%clk 0:00:08.8]} 45... a4
{[%clk 0:00:14.9]} 46. Be8 {[%clk 0:00:08.9]} 46... a3 {[%clk 0:00:12]} 47. Kc3
{[%clk 0:00:08.7]} 47... Kc5 {[%clk 0:00:11.6]} 48. Kb3 {[%clk 0:00:08.4]} 48...
b4 {[%clk 0:00:11.9]} 49. Bh5 {[%clk 0:00:08.1]} 49... Kd4 {[%clk 0:00:12.1]}
50. Bf7 {[%clk 0:00:07.7]} 50... Kc5 {[%clk 0:00:10.7]} 51. Bh5 {[%clk
0:00:07.3]} 51... Kb5 {[%clk 0:00:11.2]} 52. Be8+ {[%clk 0:00:07.3]} 52... Ka5
{[%clk 0:00:12.1]} 53. Bf7 {[%clk 0:00:07.4]} 53... Kb5 {[%clk 0:00:12.8]} 54.
Be8+ {[%clk 0:00:07.5]} 54... Kc5 {[%clk 0:00:13.4]} 55. Bf7 {[%clk 0:00:07.8]}
55... h5 {[%clk 0:00:02.1]} 56. Bxh5 {[%clk 0:00:07.8]} 56... Kd4 {[%clk
0:00:02.9]} 57. Bf7 {[%clk 0:00:06.3]} 57... Kd3 {[%clk 0:00:03.8]} 58. Kxb4
{[%clk 0:00:06.6]} 58... Kd2 {[%clk 0:00:04.7]} 59. Kxa3 {[%clk 0:00:05.4]}
1/2-1/2